Workbook

Sheet Introduction
C3: Winchester City Council Community Infrastructure Levy (CIL) Calculator

Sheet Calculator
G1: hidden | H1: hidden | I1: hidden
C3: Winchester City Council Community Infrastructure Levy (CIL) Calculator
B7: 1. In which CIL Charging Zone is the development located? | J7: (link to map)
B9: 2. What is the total GIA* (sq m) of existing floorspace (of any use) to be demolished?
B11: 3. Use the table below to set out the GIA that is: a) proposed and b) to be retained and will form part of the completed development.
C13: Charge rates have been uprated in accordance with the BICS All-in Tender Price Index (2015 to 2019) or RICS CIL Index (2020 onwards) and apply where permission is granted after 1 January 2022.
C14: Use° | E14: Total GIA* proposed for this use (sq m) | F14: Total GIA to be retained for this use (sq m) | G14: R | H14: Ar | J14: Charge for this use (£)
C15: Residentialˆ | D15: (i) | G15: =IF(F7=1,0,(IF(F7=2,120,(IF(F7=3,80))))) -> FALSE | H15: =(E15-F15)-((E15*$F$9)/$E$21) ->  | J15: =IF(E15<0,0,(H15*G15*$I$23)/$H$23) -> 
C16: Hotel | D16: (i) | F16: 0 | G16: =IF(F7=1,0,(IF(F7=2,70,(IF(F7=3,70))))) -> FALSE | J16: =IF(E16<0,0,(H16*G16*$I$23)/$H$23) -> 
C17: Retail - all categories within the town centre - part of Zone 2 | D17: (i) | F17: 0 | G17: =IF(F7=1,0,(IF(F7=2,120,(IF(F7=3,0))))) -> FALSE
C18: Retail - convenience stores, supermarkets and retail warehouses | D18: (i) | F18: 0 | G18: =IF(F7=1,0,(IF(F7=2,120,(IF(F7=3,120))))) -> FALSE
C19: Retail all other retail development | D19: (i) | F19: 0 | G19: =IF(F7=1,0,(IF(F7=2,0,(IF(F7=3,0))))) -> FALSE
C20: All Other Uses | D20: (i) | F20: 0 | G20: =IF(F7=1,0,(IF(F7=2,0,(IF(F7=3,0))))) -> FALSE
C21: Total GIA proposed | E21: =SUM(E15:E20) -> 0 | G21: Sum of Kr | H21: =SUM(F15:F20) -> 0
B22: H | G22: Yr | H22: Ic | I22: Ip
B23: H | G23: 2024 | H23: 237 | I23: 381
B24: H
C25: Total CIL payable
B26: H
C27: Notes: | G27: Zone
C28: * GIA = Gross Internal Floor Area. The GIA calculations should include all ancillary areas such as stairwells. | G28: 1
C29: ° Definitions of use classes:- follow (i) link | G29: 2
C30: ˆSocial Housing Relief: You should exclude the area for social housing from the residential calculation. | G30: 3

Sheet 2023 Charge Rates
D3: Indexed rate from 1 January 2023
C4: Charging Rates | D4: Charge per square metre
C5: Type of Development | D5: Zone 1 | E5: Zone 2 | F5: Zone 3
C7: Residential | D7: 0 | E7: 179.74 | F7: 119.82
C8: Hotel | D8: 0 | E8: 104.85 | F8: 104.85
C9: Retail - all categories within the town centre | D9: n/a | E9: 179.74 | F9: n/a
C10: Retail - convenience stores, supermarkets and retail warehouses | D10: 0 | E10: 179.74 | F10: 179.74
C11: Retail - all other retail development | D11: 0 | E11: 0 | F11: 0
C12: All Other Uses | D12: 0 | E12: 0 | F12: 0

Sheet 2022 Charge rates
D3: Indexed rate from 1 January 2022
C4: Charging Rates | D4: Charge per square metre
C5: Type of Development | D5: Zone 1 | E5: Zone 2 | F5: Zone 3
C7: Residential | D7: 0 | E7: ='Historic Charge rates'!AC7 -> 168.1001917 | F7: ='Historic Charge rates'!AD7 -> 112.0632588
C8: Hotel | D8: 0 | E8: ='Historic Charge rates'!AC8 -> 98.05844515 | F8: ='Historic Charge rates'!AD8 -> 98.05535144
C9: Retail - all categories within the town centre | D9: n/a | E9: ='Historic Charge rates'!AC9 -> 168.1001917 | F9: n/a
C10: Retail - convenience stores, supermarkets and retail warehouses | D10: 0 | E10: ='Historic Charge rates'!AC10 -> 168.1001917 | F10: ='Historic Charge rates'!AD10 -> 168.0948882
C11: Retail - all other retail development | D11: 0 | E11: 0 | F11: 0
C12: All Other Uses | D12: 0 | E12: 0 | F12: 0

Sheet Historic Charge rates
D3: as at 7 April 2014 | G3: After indexation. Applied when Permission granted on or after 1 January 2015 | J3: After indexation. Applied when Permission granted on or after 1 January 2016 | M3: After indexation. Applied when Permission granted on or after 1 January 2017 | P3: After indexation. Applied when Permission granted on or after 1 January 2018 | S3: After indexation. Applied when Permission granted between 1 January and 31 December 2019 | V3: After indexation. Applied when Permission granted between 1 January and 31 December 2020 | Y3: After indexation. Applied when Permission granted between 1 January and 31 December 2021 | AB3: After indexation. Applied when Permission granted between 1 January and 31 December 2022 | AE3: After Indexation Applied when Permission granted between 1 January and 31 December 2023 | AH3: After Indexation Applied when Permission granted between 1 January and 31 December 2024
C4: Charging Rates | D4: Charge per square metre | G4: Charge per square metre | J4: Charge per square metre | M4: Charge per square metre | P4: Charge per square metre | S4: Charge per square metre | V4: Charge per square metre | Y4: Charge per square metre | AB4: Charge per square metre | AE4: Charge per square metre | AH4: Charge per square metre
C5: Type of Development | D5: Zone 1 | E5: Zone 2 | F5: Zone 3 | G5: Zone 1 | H5: Zone 2 | I5: Zone 3 | J5: Zone 1 | K5: Zone 2 | L5: Zone 3 | M5: Zone 1 | N5: Zone 2 | O5: Zone 3 | P5: Zone 1 | Q5: Zone 2 | R5: Zone 3 | S5: Zone 1 | T5: Zone 2 | U5: Zone 3 | V5: Zone 1 | W5: Zone 2 | X5: Zone 3 | Y5: Zone 1 | Z5: Zone 2 | AA5: Zone 3 | AB5: Zone 1 | AC5: Zone 2 | AD5: Zone 3 | AE5: Zone 1 | AF5: Zone 2 | AG5: Zone 3 | AH5: Zone 1 | AI5: Zone 2 | AJ5: Zone 3
C7: Residential | D7: 0 | E7: 120 | F7: 80 | G7: 0 | H7: 129.11 | I7: 86.08 | J7: 0 | K7: 139.24 | L7: 92.83 | M7: 0 | N7: 144.81 | O7: 96.54 | P7: 0 | Q7: 158.48 | R7: 105.65 | S7: 0 | T7: 161.01 | U7: 107.34 | V7: 0 | W7: =E7+(E7*$W$21) -> 169.1133091 | X7: =F7+(F7*$W$21) -> 112.7422061 | Y7: 0 | Z7: =$E7+($E7*Z$21) -> 168.6074476 | AA7: =$F7+($F7*AA$21) -> 112.404965 | AB7: 0 | AC7: =$E7+($E7*AC$21) -> 168.1001917 | AD7: =$F7+($F7*AD$21) -> 112.0632588 | AE7: 0 | AF7: 179.74 | AG7: 119.82 | AH7: 0 | AI7: 192.91 | AJ7: 128.61
C8: Hotel | D8: 0 | E8: 70 | F8: 70 | G8: 0 | H8: 75.32 | I8: 75.32 | J8: 0 | K8: 81.22 | L8: 81.22 | M8: 0 | N8: 84.47 | O8: 84.47 | P8: 0 | Q8: 92.45 | R8: 92.45 | S8: 0 | T8: 93.92 | U8: 93.92 | V8: 0 | W8: =E8+(E8*$W$21) -> 98.6494303 | X8: =F8+(F8*$W$21) -> 98.6494303 | Y8: 0 | Z8: =$E8+($E8*Z$21) -> 98.35434441 | AA8: =$F8+($F8*AA$21) -> 98.35434441 | AB8: 0 | AC8: =$E8+($E8*AC$21) -> 98.05844515 | AD8: =$F8+($F8*AD$21) -> 98.05535144 | AE8: 0 | AF8: 104.05 | AG8: 104.05 | AH8: 0 | AI8: 112.53 | AJ8: 112.53
C9: Retail - all categories within the town centre | D9: n/a | E9: 120 | F9: n/a | G9: n/a | H9: 129.11 | I9: n/a | J9: n/a | K9: 139.24 | L9: n/a | M9: n/a | N9: 144.81 | O9: n/a | P9: n/a | Q9: 158.48 | R9: n/a | S9: n/a | T9: 161.01 | U9: n/a | V9: n/a | W9: =E9+(E9*$W$21) -> 169.1133091 | X9: n/a | Y9: n/a | Z9: =$E9+($E9*Z$21) -> 168.6074476 | AA9: n/a | AB9: n/a | AC9: =$E9+($E9*AC$21) -> 168.1001917 | AD9: n/a | AE9: n/a | AF9: 179.74 | AG9: n/a | AH9: n/a | AI9: 192.91 | AJ9: n/a
C10: Retail - convenience stores, supermarkets and retail warehouses | D10: 0 | E10: 120 | F10: 120 | G10: 0 | H10: 129.11 | I10: 129.11 | J10: 0 | K10: 139.24 | L10: 139.24 | M10: 0 | N10: 144.81 | O10: 144.81 | P10: 0 | Q10: 158.48 | R10: 158.48 | S10: 0 | T10: 161.01 | U10: 161.01 | V10: 0 | W10: =E10+(E10*$W$21) -> 169.1133091 | X10: =F10+(F10*$W$21) -> 169.1133091 | Y10: 0 | Z10: =$E10+($E10*Z$21) -> 168.6074476 | AA10: =$F10+($F10*AA$21) -> 168.6074476 | AB10: 0 | AC10: =$E10+($E10*AC$21) -> 168.1001917 | AD10: =$F10+($F10*AD$21) -> 168.0948882 | AE10: 0 | AF10: 179.74 | AG10: 179.74 | AH10: 0 | AI10: 192.91 | AJ10: 192.91
C11: Retail - all other retail development | D11: 0 | E11: 0 | F11: 0 | G11: 0 | H11: 0 | I11: 0 | J11: 0 | K11: 0 | L11: 0 | M11: 0 | N11: 0 | O11: 0 | P11: 0 | Q11: 0 | R11: 0 | S11: 0 | T11: 0 | U11: 0 | V11: 0 | W11: 0 | X11: 0 | Y11: 0 | Z11: 0 | AA11: 0 | AB11: 0 | AC11: 0 | AD11: 0 | AE11: 0 | AF11: 0 | AG11: 0 | AH11: 0 | AI11: 0 | AJ11: 0
C12: All Other Uses | D12: 0 | E12: 0 | F12: 0 | G12: 0 | H12: 0 | I12: 0 | J12: 0 | K12: 0 | L12: 0 | M12: 0 | N12: 0 | O12: 0 | P12: 0 | Q12: 0 | R12: 0 | S12: 0 | T12: 0 | U12: 0 | V12: 0 | W12: 0 | X12: 0 | Y12: 0 | Z12: 0 | AA12: 0 | AB12: 0 | AC12: 0 | AD12: 0 | AE12: 0 | AF12: 0 | AG12: 0 | AH12: 0 | AI12: 0 | AJ12: 0
C16: 2015 to 2019 - RICS all-in tender price index as at November of preceding year 2020 onwards - RICS CIL Index | E16: 237 | H16: 255 | K16: 275 | N16: 286 | Q16: 313 | T16: 318 | W16: 334 | Z16: 333 | AC16: 332
C18: Indexed rate/sqm | E18: =E7/E16*E16 -> 120 | F18: =F7/E16*E16 -> 80 | H18: =E7/E16*H16 -> 129.1139241 | I18: =F7/E16*H16 -> 86.07594937 | K18: =E7/E16*K16 -> 139.2405063 | L18: =F7/E16*K16 -> 92.82700422 | N18: =E7/E16*N16 -> 144.8101266 | O18: =F7/E16*N16 -> 96.54008439 | Q18: =E7/E16*Q16 -> 158.4810127 | R18: =F7/E16*Q16 -> 105.6540084 | T18: =H7/H16*T16 -> 161.0077647 | U18: =I7/H16*T16 -> 107.3468235 | W18: =K7/K16*W16 -> 169.1133091 | X18: =L7/K16*W16 -> 112.7462545 | Z18: =N7/N16*Z16 -> 168.6074476 | AA18: =O7/N16*Z16 -> 112.404965 | AC18: =Q7/Q16*AC16 -> 168.1001917 | AD18: =R7/Q16*AC16 -> 112.0632588
C21: %age increase from 2014 base | E21: =(E18-E7)/E7 -> 1.184237893e-16 | F21: =(F18-F7)/F7 -> 0 | H21: =(H18-$E$7)/$E$7 -> 0.07594936709 | I21: =(I18-$F$7)/$F$7 -> 0.07594936709 | K21: =(K18-$E$7)/$E$7 -> 0.1603375527 | L21: =(L18-$F$7)/$F$7 -> 0.1603375527 | N21: =(N18-$E$7)/$E$7 -> 0.2067510549 | O21: =(O18-$F$7)/$F$7 -> 0.2067510549 | Q21: =(Q18-$E$7)/$E$7 -> 0.3206751055 | R21: =(R18-$F$7)/$F$7 -> 0.3206751055 | T21: =(T18-$E$7)/$E$7 -> 0.3417313725 | U21: =(U18-$F$7)/$F$7 -> 0.3418352941 | W21: =(W18-$E$7)/$E$7 -> 0.4092775758 | X21: =(X18-$F$7)/$F$7 -> 0.4093281818 | Z21: =(Z18-$E$7)/$E$7 -> 0.4050620629 | AA21: =(AA18-$F$7)/$F$7 -> 0.4050620629 | AC21: =(AC18-$E$7)/$E$7 -> 0.4008349308 | AD21: =(AD18-$F$7)/$F$7 -> 0.4007907348
C26: Parish limit/residential property | F26: 100 | H26: =$F$26/$E$16*H16 -> 107.5949367 | K26: =$F$26/$E$16*K16 -> 116.0337553 | N26: =$F$26/$E$16*N16 -> 120.6751055 | Q26: =$F$26/$E$16*Q16 -> 132.0675105 | T26: =$F$26/$E$16*T16 -> 134.1772152 | W26: =$F$26/$E$16*W16 -> 140.92827 | Z26: =$F$26/$E$16*Z16 -> 140.5063291 | AC26: =$F$26/$E$16*AC16 -> 140.0843882

Sheet Definitions
C3: Winchester City Council Community Infrastructure Levy (CIL) Calculator
